bitfinex/quotes_SOLUSD_20220109
["timestamp","ask_amount","ask_price","bid_price","bid_amount"]
[1641765625806,0.26,142.3,142.21,79.23812586]
[1641765626007,0.51,142.3,142.21,1.78082586]
[1641765626208,29.16146543,142.29,142.2,10.5453]
[1641765626409,0.26,142.28,142.19,3.76982304]
[1641765626812,0.26,142.28,142.19,1.78082586]
[1641765627208,0.51,142.28,142.19,1.78082586]
[1641765627410,0.51,142.28,142.2,0.25]
[1641765627609,11.0561,142.28,142.17,1.78082586]
[1641765627809,1.756,142.27,142.17,1.78082586]
[1641765628011,0.26,142.26,142.17,1.78082586]
[1641765628211,0.51,142.26,142.17,1.78082586]
[1641765629011,3.51,142.26,142.18,0.25]
[1641765629511,31.8617647,142.23,142.17,1.78082586]
[1641765630311,0.51,142.22,142.13,1.98899718]
[1641765630516,0.51,142.22,142.11,3.76982304]
[1641765630714,10.5535,142.18,142.11,3.76982304]
[1641765630913,24.27504256,142.17,142.13,1.78082586]
[1641765631516,24.27504256,142.17,142.14,0.25]
[1641765632113,0.26,142.17,142.14,0.25]
[1641765632316,10.5526,142.2,142.14,0.25]
[1641765632515,0.26,142.19,142.14,2.03082586]
[1641765632715,0.26,142.19,142.14,1.78082586]
[1641765632915,0.26,142.2,142.15,0.25]
[1641765633115,31.21531268,142.2,142.15,0.25]
[1641765633715,10.5534,142.18,142.15,0.25]
[1641765633915,30.95531268,142.2,142.12,0.51]
[1641765634315,30.95531268,142.2,142.13,1.78082586]
[1641765634515,30.95531268,142.2,142.14,0.26]
[1641765634714,30.95531268,142.2,142.14,0.25]
[1641765634916,10.5527,142.19,142.14,0.25]
[1641765635815,10.5527,142.19,142.14,0.51]
[1641765636215,10.5527,142.19,142.14,0.25]
[1641765636415,0.26,142.18,142.14,0.25]
[1641765636816,10.5527,142.19,142.14,0.25]
[1641765637316,10.5527,142.19,142.14,2.29082586]
[1641765637521,30.95531268,142.2,142.14,2.04082586]
[1641765637717,30.95531268,142.2,142.15,0.25]
[1641765637917,9.94,142.21,142.15,0.25]
[1641765638122,9.94,142.21,142.16,1.78082586]
[1641765638524,9.94,142.21,142.17,0.25]
[1641765640318,195.9228,142.25,142.17,0.25]
[1641765640521,1.758,142.29,142.18,1.78082586]
[1641765640720,73.4568,142.3,142.18,1.78082586]
[1641765640919,33.8773,142.32,142.19,3.51]
[1641765641123,33.8773,142.32,142.19,12.098]
[1641765641318,58.97093698,142.32,142.2,1.78082586]
[1641765641519,58.97093698,142.32,142.21,5.016]
[1641765641818,58.97093698,142.32,142.24,10.5427]
[1641765642220,0.26,142.31,142.25,0.25]
[1641765642420,49.03093698,142.32,142.25,0.25]
[1641765642620,49.03093698,142.32,142.25,3.25]
[1641765643020,49.03093698,142.32,142.25,0.25]
[1641765643220,59.57433698,142.32,142.25,0.25]
[1641765643420,59.57433698,142.32,142.23,11.0536]
[1641765643821,0.26,142.31,142.23,11.0536]
[1641765644922,10.8042,142.31,142.23,11.0536]
[1641765645321,10.8042,142.31,142.23,12.83442586]
[1641765646325,10.8042,142.31,142.23,11.0536]
[1641765646727,10.8042,142.31,142.23,10.8036]
[1641765646928,10.8042,142.31,142.23,12.58442586]
[1641765648029,10.8042,142.31,142.24,0.25]
[1641765648230,0.25,142.3,142.21,12.3006]
[1641765648430,10.5458,142.29,142.22,0.25]
[1641765648632,10.5458,142.29,142.22,3.25]
[1641765648834,0.26,142.28,142.22,0.25]
[1641765649031,60.72693698,142.32,142.22,0.25]
[1641765649236,60.72693698,142.32,142.22,2.03082586]
[1641765649431,60.72693698,142.32,142.22,5.03082586]
[1641765649632,10.5446,142.31,142.23,0.26]
[1641765650433,0.26,142.3,142.23,0.26]
[1641765653038,33.8773,142.32,142.23,0.26]
[1641765653238,24.1244,142.33,142.24,1.78082586]
[1641765653437,24.1244,142.33,142.25,0.51]
[1641765653640,24.1244,142.33,142.25,3.51]
[1641765653841,24.1244,142.33,142.26,1.78082586]
[1641765654039,26.16781351,142.34,142.26,1.78082586]
[1641765654240,26.16781351,142.34,142.27,0.51]
[1641765654461,26.16781351,142.34,142.27,0.25]
[1641765654859,26.16781351,142.34,142.24,0.25]
[1641765655061,11.696,142.33,142.24,0.25]
[1641765655260,24.0015,142.32,142.24,0.25]
[1641765655460,0.26,142.31,142.24,0.25]
[1641765656162,0.26,142.31,142.21,10.5445]
[1641765656861,10.5448,142.3,142.21,10.5445]
[1641765657262,76.2253,142.31,142.22,0.26]
[1641765657462,76.2253,142.31,142.22,0.51]
[1641765657663,76.2253,142.31,142.22,2.29082586]
[1641765657864,76.2253,142.31,142.23,0.25]
[1641765658266,10.19,142.3,142.19,1.78082586]
[1641765658470,22.5801524,142.28,142.2,0.25]
[1641765658870,0.26,142.27,142.2,0.25]
[1641765659668,0.26,142.27,142.19,0.25]
[1641765659870,10.8076,142.27,142.19,0.25]
[1641765660167,10.8076,142.27,142.19,2.03082586]
[1641765660369,22.5801524,142.28,142.19,2.03082586]
[1641765660869,22.5801524,142.28,142.2,0.26]
[1641765661069,22.5801524,142.28,142.21,1.757]
[1641765661270,22.5801524,142.28,142.21,12.3019]
[1641765661471,22.5801524,142.28,142.22,0.51]
[1641765661873,22.5801524,142.28,142.22,2.29082586]
[1641765662475,22.5801524,142.28,142.23,1.756]
[1641765662675,22.5801524,142.28,142.23,12.2996]
[1641765662874,22.5801524,142.28,142.24,2.29082586]
[1641765663075,22.5801524,142.28,142.24,2.03082586]
[1641765663275,22.5801524,142.28,142.2,1.78082586]
[1641765663477,22.5801524,142.28,142.24,0.25]
[1641765663977,22.5801524,142.28,142.21,0.25]
[1641765664377,22.5801524,142.28,142.22,1.78082586]
[1641765664578,33.7352,142.3,142.22,7.71682586]
[1641765664778,34.80240589,142.33,142.23,0.25]
[1641765664979,0.26,142.32,142.23,5.03082586]
[1641765665178,0.26,142.32,142.24,1.78082586]
[1641765665377,0.26,142.32,142.25,0.51]
[1641765665580,31.24840248,142.32,142.25,10.847]
[1641765665779,27.98840248,142.32,142.26,1.78082586]
[1641765665980,3.0,142.31,142.27,0.25]
[1641765666179,27.98840248,142.32,142.25,9.091]
[1641765666180,27.98840248,142.32,142.26,10.5414]
[1641765666479,27.98840248,142.32,142.27,0.25]
[1641765667081,27.98840248,142.32,142.27,0.51]
[1641765667482,22.9154,142.33,142.27,11.0505]
[1641765667682,22.9154,142.33,142.27,12.32132586]
[1641765667881,22.9154,142.33,142.28,3.51]
[1641765668082,22.9154,142.33,142.28,3.25]
[1641765668582,25.35500533,142.32,142.28,3.25]
[1641765668782,25.61500533,142.32,142.25,12.32232586]
[1641765668982,25.61500533,142.32,142.26,0.25]
[1641765670583,25.35500533,142.32,142.26,12.83202586]
[1641765672188,23.4016,142.34,142.26,12.83202586]
[1641765672388,23.4016,142.34,142.26,20.92902586]
[1641765672589,1.94700589,142.35,142.26,20.92902586]
[1641765672789,1.94700589,142.35,142.27,4.756]
[1641765672989,22.42670589,142.37,142.29,10.5387]
[1641765673219,25.71687897,142.36,142.29,10.5387]
[1641765673421,25.97687897,142.36,142.3,0.51]
[1641765674625,25.97687897,142.36,142.3,11.0484]
[1641765674822,25.97687897,142.36,142.3,10.5384]
[1641765675023,25.97687897,142.36,142.31,0.25]
[1641765676125,25.97687897,142.36,142.28,10.7995]
[1641765677127,25.97687897,142.36,142.28,12.58032586]
[1641765677325,25.97687897,142.36,142.28,14.33632586]
[1641765677526,25.97687897,142.36,142.29,0.25]
[1641765680028,36.51677897,142.36,142.29,0.25]
[1641765682432,36.51677897,142.36,142.29,2.03082586]
[1641765683533,36.51677897,142.36,142.29,12.56982586]
[1641765683734,36.51677897,142.36,142.29,10.789]
[1641765683934,25.97687897,142.36,142.29,10.789]
[1641765684134,25.97687897,142.36,142.29,19.92382586]
[1641765684333,25.71687897,142.36,142.3,2.016]
[1641765684533,25.71687897,142.36,142.3,0.26]
[1641765684736,129.13970589,142.39,142.31,2.03082586]
[1641765684737,119.19970589,142.39,142.31,2.03082586]
[1641765684935,95.24700589,142.39,142.32,2.266]
[1641765685134,80.72110589,142.41,142.32,13.88082586]
[1641765685336,1.94700589,142.41,142.32,13.88082586]
[1641765685534,1.94700589,142.41,142.33,1.78082586]
[1641765685938,29.0156647,142.4,142.34,3.51]
[1641765686135,29.0156647,142.4,142.34,5.264]
[1641765686536,29.0156647,142.4,142.35,10.5347]
[1641765686838,29.0156647,142.4,142.34,3.51]
[1641765687036,29.0156647,142.4,142.34,0.25]
[1641765687238,0.26,142.39,142.31,1.754]
[1641765687638,29.0156647,142.4,142.32,4.78082586]
[1641765687836,29.0156647,142.4,142.33,1.756]
[1641765688037,29.0156647,142.4,142.34,3.0]
[1641765688237,29.0156647,142.4,142.32,4.78082586]
[1641765688441,29.0156647,142.4,142.31,1.756]
[1641765688638,29.0156647,142.4,142.32,0.25]
[1641765688838,39.5525647,142.4,142.31,13.7871]
[1641765689039,0.26,142.39,142.31,13.7871]
[1641765689645,0.26,142.39,142.32,1.78082586]
[1641765689847,0.26,142.39,142.33,10.5362]
[1641765690144,29.0156647,142.4,142.33,10.7862]
[1641765690545,29.0156647,142.4,142.34,0.26]
[1641765692584,29.0156647,142.4,142.34,10.7953]
[1641765692785,29.0156647,142.4,142.35,0.25]
[1641765692985,0.26,142.39,142.35,0.25]
[1641765693984,0.26,142.39,142.33,0.25]
[1641765694988,10.7976,142.39,142.33,0.25]
[1641765696288,42.0,142.38,142.31,10.5377]
[1641765696495,0.26,142.37,142.31,10.5377]
[1641765698292,0.26,142.37,142.32,0.25]
[1641765698693,0.26,142.37,142.28,1.756]
[1641765698894,23.4056,142.37,142.28,1.756]
[1641765699095,25.1616,142.37,142.28,1.756]
[1641765699494,25.1616,142.37,142.25,1.98899718]
[1641765699695,48.2459,142.37,142.26,3.0]
[1641765699896,60.73190589,142.37,142.26,13.5408]
[1641765700297,60.73190589,142.37,142.27,0.25]
[1641765700505,12.94,142.36,142.27,0.25]
[1641765700900,10.5421,142.33,142.27,0.25]
[1641765701104,29.49574609,142.32,142.26,0.25]
[1641765701400,29.75574609,142.32,142.26,2.03082586]
[1641765701600,29.75574609,142.32,142.26,1.78082586]
[1641765701801,29.75574609,142.32,142.27,0.25]
[1641765703429,40.29834609,142.32,142.26,1.78082586]
[1641765703633,0.25,142.31,142.23,1.98899718]
[1641765703833,23.9255,142.31,142.23,1.98899718]
[1641765704235,0.26,142.3,142.23,1.98899718]
[1641765704436,0.26,142.3,142.22,3.0103333]
[1641765704437,0.51,142.3,142.22,3.0103333]
[1641765704635,10.5462,142.27,142.22,3.0103333]
[1641765704837,26.62459621,142.26,142.22,3.0103333]
[1641765705436,46.9169,142.31,142.22,3.0103333]
[1641765705836,0.26,142.3,142.23,0.25]
[1641765706438,27.48551743,142.3,142.23,0.25]
[1641765706737,10.5455,142.28,142.23,0.25]
[1641765707339,27.48551743,142.3,142.23,0.51]
[1641765707541,27.22551743,142.3,142.23,0.51]
[1641765707741,10.5454,142.29,142.23,0.51]
[1641765707941,27.22551743,142.3,142.23,0.51]
[1641765708145,0.26,142.29,142.22,3.0103333]
[1641765708343,13.2,142.29,142.22,3.0103333]
[1641765708943,2.006,142.28,142.22,3.0103333]
[1641765709143,10.5502,142.25,142.22,3.0103333]
[1641765709342,24.21361572,142.24,142.22,3.0103333]
[1641765709544,27.47361572,142.24,142.22,3.0103333]
[1641765710143,46.5504,142.23,142.22,3.0103333]
[1641765710540,49.8104,142.23,142.22,0.0003333]
[1641765710941,49.8104,142.23,142.15,1.98899718]
[1641765711141,0.26,142.22,142.15,1.98899718]
[1641765711343,10.5509,142.21,142.15,1.98899718]
[1641765711543,23.93637537,142.2,142.15,1.98899718]
[1641765711745,23.93637537,142.2,142.14,80.30649718]
[1641765711944,23.93637537,142.2,142.15,0.26]
[1641765712148,23.93637537,142.2,142.15,0.51]
[1641765713251,23.93637537,142.2,142.15,0.25]
[1641765713649,34.48797537,142.2,142.13,10.8008]
[1641765714976,34.48797537,142.2,142.13,0.25]
[1641765715177,0.26,142.19,142.13,0.51]
[1641765715376,0.26,142.19,142.13,0.26]
[1641765715578,0.26,142.19,142.12,2.008]
[1641765715778,34.48797537,142.2,142.12,2.008]
[1641765716778,34.48797537,142.2,142.12,12.5596]
[1641765716977,34.48797537,142.2,142.13,0.26]
[1641765720783,23.93637537,142.2,142.13,10.8109]
[1641765720985,23.93637537,142.2,142.14,0.25]
[1641765721184,23.93637537,142.2,142.14,2.008]
[1641765721383,23.93637537,142.2,142.15,0.26]
[1641765722884,23.93637537,142.2,142.13,0.51]
[1641765723286,23.93637537,142.2,142.13,0.25]
[1641765723486,23.93637537,142.2,142.13,3.25]
[1641765723885,23.93637537,142.2,142.13,13.801]
[1641765724088,23.6649,142.22,142.13,13.301]
[1641765724286,23.6649,142.22,142.13,19.194]
[1641765724487,1.758,142.26,142.13,20.97482586]
[1641765724686,87.7861,142.27,142.14,0.26]
[1641765725086,27.00404407,142.26,142.15,1.78082586]
[1641765725286,23.1112,142.25,142.18,10.5469]
[1641765725487,23.1112,142.25,142.19,0.26]
[1641765725887,23.1112,142.25,142.16,0.26]
[1641765726289,23.1112,142.25,142.16,0.51]
[1641765726490,31.08615438,142.24,142.16,0.51]
[1641765726695,31.08615438,142.24,142.16,3.51]
[1641765726890,31.08615438,142.24,142.17,10.5481]
[1641765727291,31.08615438,142.24,142.18,0.51]
[1641765727893,31.08615438,142.24,142.18,0.25]
[1641765728091,41.63485438,142.24,142.18,0.25]
[1641765728293,0.26,142.23,142.17,0.25]
[1641765728493,0.26,142.23,142.16,0.25]
[1641765729794,10.8097,142.23,142.16,0.25]
[1641765730194,35.0072,142.23,142.15,0.25]
[1641765730394,26.0,142.22,142.13,3.49699718]
[1641765730796,0.26,142.21,142.13,3.49699718]
[1641765731596,0.26,142.21,142.13,5.27782304]
[1641765731796,9.8103,142.22,142.14,10.5503]
[1641765732101,24.1975,142.23,142.14,10.8103]
[1641765732297,24.1975,142.23,142.15,2.008]
[1641765732498,31.08615438,142.24,142.16,0.26]
[1641765732697,31.08615438,142.24,142.17,1.758]
[1641765732897,31.08615438,142.24,142.18,0.51]
[1641765733802,31.08615438,142.24,142.18,11.057]
[1641765734201,31.08615438,142.24,142.18,0.51]
[1641765734999,31.08615438,142.24,142.18,0.25]
[1641765735599,0.26,142.23,142.18,0.25]
[1641765736001,3.51,142.23,142.17,1.758]
[1641765736602,3.51,142.23,142.12,5.46597356]
[1641765736800,10.5511,142.21,142.13,10.5505]
[1641765736999,0.26,142.2,142.14,0.26]
[1641765737700,10.8119,142.2,142.14,0.26]
[1641765737901,10.8119,142.2,142.11,0.0003333]
[1641765738102,29.04279069,142.18,142.11,0.0003333]
[1641765739007,29.04279069,142.18,142.11,3.98542348]
[1641765739202,29.04279069,142.18,142.12,0.25]
[1641765739404,29.04279069,142.18,142.12,2.008]
[1641765739703,29.04279069,142.18,142.12,1.758]
[1641765740503,29.04279069,142.18,142.13,0.26]
[1641765740904,29.04279069,142.18,142.13,11.061]
[1641765742106,29.04279069,142.18,142.13,0.51]
[1641765742507,29.04279069,142.18,142.12,0.51]
[1641765743608,29.04279069,142.18,142.12,11.0618]
[1641765744418,29.04279069,142.18,142.11,1.7583333]
[1641765744608,0.26,142.17,142.11,1.7583333]
[1641765744811,3.26,142.17,142.11,1.7583333]
[1641765745509,3.26,142.17,142.11,0.0003333]
[1641765745710,13.2,142.17,142.11,0.0003333]
[1641765745910,10.5562,142.14,142.11,0.0003333]
[1641765746112,3.0,142.13,142.11,0.0003333]
[1641765746311,3.26,142.13,142.11,0.0003333]
[1641765746519,0.26,142.13,142.11,0.0003333]
[1641765747012,3.51,142.16,142.11,0.0003333]
[1641765747413,10.5571,142.13,142.11,0.0003333]
[1641765747814,24.26,142.12,142.11,0.0003333]
[1641765748014,27.26,142.12,142.11,0.0003333]
[1641765748445,3.0,142.12,142.11,0.0003333]
[1641765748646,24.1783,142.15,142.11,0.0003333]
[1641765748841,110.6254,142.17,142.11,0.0003333]
[1641765749044,3.0,142.16,142.11,0.0003333]
[1641765749242,110.6254,142.17,142.11,1.78115916]
[1641765749448,110.6254,142.17,142.12,0.25]
[1641765749644,31.20210854,142.16,142.12,0.25]
[1641765751444,9.94,142.19,142.11,0.51]
[1641765751646,9.94,142.19,142.12,1.78082586]
[1641765751850,9.94,142.19,142.12,12.33232586]
[1641765752045,98.2465,142.2,142.13,0.51]
[1641765752244,98.2465,142.2,142.14,1.758]
[1641765752444,98.2465,142.2,142.15,0.25]
[1641765752645,28.70205755,142.19,142.15,0.25]
[1641765752843,28.70205755,142.19,142.15,2.03082586]
[1641765753445,28.70205755,142.19,142.15,0.25]
[1641765753844,28.44205755,142.19,142.12,0.51]
[1641765754247,28.44205755,142.19,142.12,1.78082586]
[1641765754445,28.44205755,142.19,142.13,0.25]
[1641765754645,38.99485755,142.19,142.13,0.25]
[1641765754844,38.99485755,142.19,142.1,89.8138]
[1641765755044,38.99485755,142.19,142.1,88.0558]
[1641765755245,0.26,142.18,142.1,88.0558]
[1641765755845,10.814,142.18,142.09,1.78082586]
[1641765756052,24.6131,142.17,142.07,1.758]
[1641765756250,31.0991,142.17,142.06,5.48879942]
[1641765756454,0.26,142.16,142.06,4.98879942]
[1641765756652,0.26,142.16,142.06,1.78082586]
[1641765756854,0.26,142.16,142.07,1.78082586]
[1641765757054,0.26,142.16,142.07,12.59622586]
[1641765757055,10.5556,142.15,142.07,12.59622586]
[1641765757253,10.5556,142.15,142.08,0.25]
[1641765757457,10.5556,142.15,142.08,2.03082586]
[1641765757854,10.5556,142.15,142.09,0.26]
[1641765758155,0.26,142.16,142.09,2.04082586]
[1641765758357,35.1677,142.17,142.1,0.25]
[1641765758555,35.1677,142.17,142.1,2.03082586]
[1641765759055,24.6131,142.17,142.11,0.26]
[1641765760660,35.1672,142.17,142.11,0.26]
[1641765760857,35.1672,142.17,142.1,0.26]
[1641765761258,35.1672,142.17,142.1,2.04082586]
[1641765761963,35.1672,142.17,142.11,0.25]
[1641765764162,0.26,142.16,142.11,0.25]
[1641765764362,0.26,142.16,142.09,0.25]
[1641765764569,0.26,142.16,142.08,10.5548]
[1641765764762,0.26,142.16,142.09,1.78082586]
[1641765765162,0.26,142.16,142.08,10.5548]
[1641765765364,10.8148,142.16,142.08,10.5548]
[1641765765862,10.8148,142.16,142.09,0.25]
[1641765766665,3.0,142.15,142.09,0.25]
[1641765766891,0.26,142.14,142.09,0.25]
[1641765769895,22.5203,142.15,142.09,0.25]
[1641765770098,22.5203,142.15,142.09,12.58472586]
[1641765770497,22.5203,142.15,142.1,0.26]
[1641765772298,22.5203,142.15,142.1,2.04082586]
[1641765772495,22.5203,142.15,142.11,0.25]
[1641765772696,10.5545,142.17,142.11,0.25]
[1641765772897,0.26,142.16,142.11,0.25]
[1641765773100,3.26,142.16,142.11,0.25]
[1641765773497,3.26,142.16,142.1,0.51]
[1641765773897,3.0,142.16,142.1,11.0632]
[1641765774101,3.0,142.17,142.1,12.33402586]
[1641765774296,3.0,142.17,142.11,0.51]
[1641765774500,3.0,142.17,142.11,0.25]
[1641765775302,0.26,142.16,142.11,0.25]
[1641765775503,10.8148,142.16,142.08,10.8041]
[1641765775904,3.0,142.15,142.09,0.26]
[1641765776105,27.1781,142.15,142.08,12.5621]
[1641765776506,37.7336,142.15,142.08,2.008]
[1641765776707,0.26,142.14,142.08,2.008]
[1641765777508,0.26,142.14,142.08,1.758]
[1641765778007,0.26,142.14,142.07,12.33632586]
[1641765778408,10.8163,142.14,142.07,1.78082586]
[1641765778606,28.37366471,142.13,142.07,1.78082586]
[1641765778806,28.37366471,142.13,142.08,0.25]
[1641765779208,10.8163,142.14,142.09,1.78082586]
[1641765779407,27.1781,142.15,142.1,0.25]
[1641765779609,37.7336,142.15,142.1,0.25]
[1641765780810,27.1781,142.15,142.09,0.51]
[1641765781210,27.1781,142.15,142.09,2.29082586]
[1641765781910,27.1781,142.15,142.09,12.84462586]
[1641765782711,24.1781,142.15,142.09,12.84462586]
[1641765782911,20.4938,142.18,142.09,12.84462586]
[1641765783112,24.0831,142.17,142.09,12.84462586]
[1641765785721,24.0831,142.17,142.1,3.99060889]
[1641765785918,24.0831,142.17,142.11,0.25]
[1641765786117,24.0831,142.17,142.11,2.03082586]
[1641765786818,24.0831,142.17,142.12,1.78082586]
[1641765787021,24.0831,142.17,142.12,2.04082586]
[1641765787221,24.0831,142.17,142.13,0.25]
[1641765788323,24.0831,142.17,142.11,0.51]
[1641765796557,24.0831,142.17,142.12,1.78082586]
[1641765796954,24.0831,142.17,142.11,0.26]
[1641765798360,0.26,142.16,142.1,10.5531]
[1641765798558,0.26,142.16,142.09,1.78082586]
[1641765799158,0.26,142.16,142.1,0.25]
[1641765799859,10.8149,142.16,142.1,0.25]
[1641765800459,24.0831,142.17,142.1,0.51]
[1641765800659,24.0831,142.17,142.1,0.25]
[1641765800862,0.26,142.16,142.1,0.25]
[1641765805967,24.0831,142.17,142.1,0.51]
[1641765806165,24.0831,142.17,142.1,11.0631]
[1641765807372,24.0831,142.17,142.1,12.84392586]
[1641765807566,0.26,142.16,142.1,2.03082586]
[1641765807970,0.26,142.16,142.08,1.78082586]
[1641765807971,7.496,142.16,142.08,1.78082586]
[1641765808169,23.5506,142.15,142.08,1.78082586]
[1641765808370,0.26,142.14,142.06,3.53882586]
[1641765808572,10.557,142.13,142.06,3.53882586]
[1641765808770,42.36134893,142.13,142.06,3.53882586]
[1641765808971,0.26,142.12,142.06,3.53882586]
[1641765809170,0.26,142.12,142.07,1.78082586]
[1641765809370,0.26,142.12,142.07,6.01932486]
[1641765809770,0.26,142.12,142.08,1.78082586]
[1641765809971,0.26,142.12,142.09,0.25]
[1641765811901,0.26,142.13,142.09,0.25]
[1641765812071,0.26,142.13,142.09,2.03082586]
[1641765812273,0.26,142.13,142.09,1.78082586]
[1641765812475,0.26,142.13,142.1,0.25]
[1641765812876,0.26,142.13,142.1,2.03082586]
[1641765813077,26.5506,142.15,142.1,2.03082586]
[1641765813278,23.5506,142.15,142.1,2.03082586]
[1641765813976,23.5506,142.15,142.11,0.26]
[1641765814276,23.5506,142.15,142.1,2.03082586]
[1641765815477,23.5506,142.15,142.11,0.26]
[1641765823020,82.168,142.16,142.1,12.58402586]
[1641765823418,82.168,142.16,142.1,0.25]
[1641765823618,23.5408,142.15,142.1,0.25]
[1641765823820,23.8008,142.15,142.09,0.25]
[1641765824021,31.32864765,142.14,142.09,0.25]
[1641765824621,31.32864765,142.14,142.08,0.51]
[1641765825321,31.32864765,142.14,142.08,11.0647]
[1641765825522,23.5408,142.15,142.08,12.84552586]
[1641765826122,23.5408,142.15,142.09,3.98908844]
[1641765826421,23.5408,142.15,142.1,2.008]
[1641765826623,23.5408,142.15,142.1,0.25]
[1641765827923,23.5408,142.15,142.1,11.0632]
[1641765828224,23.5408,142.15,142.11,1.78082586]
[1641765828424,23.5408,142.15,142.12,0.25]
[1641765828824,24.0687,142.19,142.12,0.51]
[1641765829025,23.1084,142.18,142.12,2.29082586]
[1641765829226,23.1084,142.18,142.12,12.84252586]
[1641765829423,23.1084,142.18,142.13,1.758]
[1641765829624,73.6882,142.21,142.13,1.758]
[1641765829825,24.2185,142.2,142.14,2.29082586]
[1641765830427,24.2185,142.2,142.14,0.51]
[1641765830826,24.2185,142.2,142.14,1.78082586]
[1641765831026,24.2185,142.2,142.15,0.26]
[1641765831229,24.2185,142.2,142.15,0.25]
[1641765831429,24.2185,142.2,142.15,0.51]
[1641765831629,24.2185,142.2,142.15,11.0596]
[1641765832228,34.98108092,142.23,142.15,11.0596]
[1641765832429,96.657,142.25,142.16,1.78082586]
[1641765832631,96.657,142.25,142.16,4.78082586]
[1641765832829,96.657,142.25,142.19,10.5466]
[1641765833229,96.657,142.25,142.2,0.51]
[1641765834332,96.657,142.25,142.2,0.25]
[1641765834733,96.657,142.25,142.18,0.51]
[1641765835837,0.26,142.24,142.18,0.51]
[1641765836136,0.26,142.24,142.18,0.25]
[1641765836335,0.51,142.24,142.15,14.08572586]
[1641765836535,2.268,142.24,142.15,12.3049]
[1641765837635,0.51,142.24,142.16,0.25]
[1641765837836,11.0589,142.24,142.16,0.25]
[1641765838268,23.2811,142.23,142.16,0.25]
[1641765838470,0.26,142.22,142.16,0.25]
[1641765839868,10.8103,142.22,142.16,0.25]
[1641765840071,26.93555074,142.2,142.14,11.0603]
[1641765840669,26.93555074,142.2,142.14,12.58112586]
[1641765841171,22.7887,142.21,142.14,12.58112586]
[1641765842273,22.7887,142.21,142.15,0.26]
[1641765842471,22.7887,142.21,142.15,10.8093]
[1641765842972,22.7887,142.21,142.16,0.25]
[1641765844675,22.7887,142.21,142.16,10.7988]
[1641765848377,22.7887,142.21,142.16,0.25]
[1641765849378,22.7887,142.21,142.16,12.57962586]
[1641765849579,22.7887,142.21,142.17,1.758]
[1641765849781,22.7887,142.21,142.17,2.018]
[1641765849979,22.7887,142.21,142.18,0.25]
[1641765850180,22.7887,142.21,142.19,3.03219996]
[1641765850381,118.56425701,142.25,142.2,0.25]
[1641765850580,24.1772,142.24,142.18,3.25]
[1641765850781,24.4372,142.24,142.18,3.25]
[1641765852182,24.4372,142.24,142.18,0.25]
[1641765852385,24.1772,142.24,142.18,11.0573]
[1641765852583,24.1772,142.24,142.18,12.83812586]
[1641765853784,9.94,142.29,142.18,12.83812586]
[1641765853983,34.7574,142.29,142.19,4.756]
[1641765854387,34.7574,142.29,142.2,1.78082586]
[1641765855387,34.7574,142.29,142.21,3.0]
[1641765855786,34.7574,142.29,142.22,10.5442]
[1641765855985,34.7574,142.29,142.23,3.0]
[1641765856385,34.7574,142.29,142.22,10.5442]
[1641765861092,47.0585,142.29,142.21,1.78082586]
[1641765861293,47.0585,142.29,142.2,12.3011]
[1641765861495,45.3025,142.29,142.2,12.3011]